Workbook

Sheet Instructivo
A1: CRITERIO DE PRIORIZACIÓN DE TRÁMITES ADMINISTRATIVOS
A2: Instructivo
A3: Consideraciones generales
A5: En las hojas “COSTO DE ADMINISTRACIÓN PÚBLICA”y “RESUMEN” para añadir más trámites y que apliquen las fórmulas, se deberá seleccionar la primera fila y copiarla una por cada trámite de la entidad
A7: Todas las hojas tienen columnas de color celeste, en las cuales NO deben ingresar valores ya que contienen fórmulas.
A8: Para la carga en GOB.EC. La institución debe recordar que el peso máximo del archivo es de 2 MB.
A9: Esquema de puntuación
A10: Para priorizar un trámite, se realizará un análisis de criterios básicos y adicionales basado en información que disponen las instituciones sujetas a esta norma técnica. Cada criterio será puntuado según los lineamientos presentes en esta norma.
A11: a) Demanda Anual
A12: Considerará el volumen o frecuencia de las solicitudes que ingresan al año a cada institución para la gestión de un trámite en particular.
A13: La identificación del volumen anual de los trámites se realizará a través de sus registros de transacciones y/o el número de visitas de consulta de información realizadas a través de páginas web institucionales.
A14: Para realizar el registro realice lo siguiente:
A15: 1.- Seleccione la hoja DEMANDA ANUAL
A16: 2.- Ingrese los trámites de la institución registrando el identificador y nombre en las columnas respectivas.
A17: 3.- Para cada trámite debe especificar en la columna DEMANDA ANUAL el volumen o frecuencia anual, de acuerdo a lo mencionado anteriormente.
A18: 4.- Una vez terminado el llenado solicitado presione el botón PUNTUACIÓN, se ordenara de menor a mayor.
A19: 5.- Usted visualizará el ordenamiento de los trámites ingresados de acuerdo al número de volumen o frecuencia anual.
A20: 6.- Así mismo, usted visualizará el puntaje obtenido en la columna PUNTUACIÓN de acuerdo al grupo obtenido por cada trámite de acuerdo al número de volumen o frecuencia anual cosiderando lo siguiente: ** Primer grupo (trámites con menor demanda no incluye los trámites con demanda 0 ) = 3 ** Segundo grupo (trámites con demanda intermedia) = 6 ** Tercer grupo (trámites con mayor demanda) = 10
A21: Cada vez que requiera actualizar el puntaje presionando el botón puntuación, debe verificar que la celda de la columna puntaje se encuentren vacías, es decir, se debe borrar cualquier valor de puntaje obtenido previamente.
A22: b) Volumen de quejas asociadas a un trámite:
A23: Considerará la cantidad de quejas recibidas en relación a un trámite durante un año. Estas quejas deberán estar documentadas en medios físicos y/o digitales.
A24: Para determinar la puntuación, se colocará en una tabla todos los trámites con sus correspondientes quejas ordenándose de menor a mayor. Se dividirá en 2 partes en los que cada grupo contenga la misma cantidad de trámites.
A25: Para realizar el registro realice lo siguiente:
A26: 1.- Seleccione la hoja VOLUMEN DE QUEJAS
A27: 2.- Ingrese los trámites de la institución registrando el identificador y nombre en las columnas respectivas. Si usted requiere de acuerdo al número de trámites copie filas adicionales que estén dentro del cuadro
A28: 3.- Para cada trámite debe especificar en la columna VOLUMEN QUEJAS el número de quejas anual, de acuerdo a lo mencionado anteriormente.
A29: 4.- Una vez terminado el llenado solicitado presione el botón PUNTUACIÓN.
A30: 5.- Usted visualizará el ordenamiento de los trámites ingresados de acuerdo al número de volumen o frecuencia anual.
A31: 6.- Así mismo, usted visualizará el puntaje obtenido en la columna PUNTUACIÓN de acuerdo al grupo obtenido por cada trámite de acuerdo al número de volumen o frecuencia anual cosiderando lo siguiente: La puntuación se basará en los siguientes grupos: ** Primer grupo (trámites con menor cantidad de quejas, no incluye los trámites con queja 0 ) = 4 ** Segundo grupo (trámites con mayor porcentaje de quejas) = 10
A32: El valor del volumen de quejas no debe ser superior al valor del volumen de la demana, no le permitirá registrar un valor.
A33: c) Costo para la administración pública:
A34: En cada trámite, basado en un caso estándar, se deberá estimar el costo incurrido en el costo de personal y recursos necesarios para su atención desde que el administrado entregó todos los requisitos hasta que la institución entregue el producto, respuesta o servicio requerido en el trámite. Se considerará:
A35: • Costo de personal:
A36: Costo del personal para atender el trámite, se excluyen actividades realizadas automáticamente o que dependen del administrado. El tiempo deberá considerar únicamente el tiempo efectivo de trabajo del personal, no debe considerar el tiempo de espera o de movimiento.
A37: • Costo de recursos:
A38: Se deberá considerar el costo directo en el que la institución debe incurrir para atender un trámite. Se debe considerar los insumos o materia prima necesaria u cualquier otro que la institución considere pertinente.
A39: Para realizar el registro realice lo siguiente:
A40: 1.- Seleccione la hoja COSTO ADMINISTRACIÓN PÚBLICA
A41: 2.- Ingrese los trámites de la institución registrando el identificador y nombre en las columnas respectivas. Si usted requiere de acuerdo al número de trámites copie filas adicionales que estén dentro del cuadro
A42: 3.- Para calcular el tiempo de las actividades, utilizar la hoja AUXILIAR COSTO ADMINISTRACIÓN donde deberá listar todas las actividades que realiza la institución en un caso estándar y asignar el tiempo mínimo que toma cada actvidad (en horas). El tiempo total de las actividades, deberá ingresar en la correspondiente celda de la hoja COSTO ADMINISTRACIÓN PÚBLICA
A43: 4.- En función de la información registrada en el paso 3, la matriz entregará el costo del personal
A44: 5.- Completar la columna "Costo recursos", en la cual ingresará el costo directo en el que incurre la institución para entregar el trámite. En este valor se considerarán los valores correspondientes a insumos y/o materia prima mínimos que se invierten por cada trámite (no se considera mano de obra)
A45: 6.- La columna "Costo para la adm. pública" mostrará el costto de este criterio para cada trámite
A46: 7,- Para que la fórmula funcione debe arrastrar hacia abajo al último de los támites ingresados, no copiar
A47: 7.- Una vez que disponga del Costo para la administración pública, presionar el botón "GENERAR".
A48: 8. Visualizar la hoja “RESUMEN DE COSTO AP” en la que va a encontrar copiada las celdas necesarias para el ordenamiento y puntuación de las mismas al presionar el botón “PUNTUACIÓN”
A50: d) Tiempo de respuesta:
A51: Considerará los tiempos que a las instituciones les toma dar respuesta a un trámite desde que reciben la solicitud del administrado hasta la finalización del mismo. Para la definición del tiempo se considerará un caso estándar.
A52: Para determinar la puntuación, se colocará en una tabla todos los trámites con el tiempo de respuesta, ordenándose de menor a mayor. Se dividirá en 4 grupos, en los que cada uno contenga la misma cantidad de trámites.
A53: Para realizar el registro realice lo siguiente:
A54: 1.- Seleccione la hoja TIEMPO DE RESPUESTA
A55: 2.- Ingrese los trámites de la institución registrando el identificador y nombre en las columnas respectivas. Si usted requiere de acuerdo al número de trámites copie filas adicionales que estén dentro del cuadro
A56: 3.- Para cada trámite debe especificar en la columna TIEMPO RESPUESTA el tiempo, de acuerdo a lo mencionado anteriormente.
A57: 4.- Una vez terminado el llenado solicitado presione el botón PUNTUACIÓN.
A58: 5.- Usted visualizará el ordenamiento de los trámites ingresados de acuerdo al número de volumen o frecuencia anual.
A59: 6.- Así mismo, usted visualizará el puntaje obtenido en la columna PUNTUACIÓN de acuerdo al grupo obtenido por cada trámite de acuerdo al número de volumen o frecuencia anual cosiderando lo siguiente: La puntuación considera lo siguiente: ** Primer grupo (menor o igual a 40 horas laboralres) = 0 ** Segundo grupo mayor 40 horas laboralres) = 30
A60: e) Canal de atención:
A61: Considerará los canales de atención a través de los cuales el administrado puede iniciar el trámite.
A62: Para realizar el registro realice lo siguiente:
A63: 1.- Seleccione la hoja CANAL ATENCIÓN
A64: 2.- Ingrese los trámites de la institución registrando el identificador y nombre en las columnas respectivas. Si usted requiere de acuerdo al número de trámites copie filas adicionales que estén dentro del cuadro
A65: 3.- Para cada trámite debe seleccionar el canal de atención del trámite en la columna CANAL ATENCIÓN, que pueden ser: El trámite se puede completar totalmente en línea: Se considera trámite totalmente en línea cuando el administrado no requiere realizar ninguna interacción presencial con la institución = 0 El trámite no se puede completar totalmente en línea: Se considera este caso, cuando el trámite incluye al menos una actividad, incluido mecanismos de pago, en la que el administrado deba acudir presencialmente a la institución, para la realización de dicho trámite. Los trámites presenciales se consideran dentro de esta categoría = 10
A66: 4.- De acuerdo a la selección usted obtendrá la puntuación del trámite que se visualizará en la columna PUNTUACIÓN.
A68: f) Resumen
A69: En esta hoja deberá consolidar todas las puntuaciones obtenidas para cada trámite en los criterios a) hasta e). Adicionalmente deberá analizar los criterios adicionales que dispone la norma técnica, para estos últimos solamente deberá seleccionar en la celda correspondiente y la matriz asignará la puntuación adicional. Los criterios que deberá considerar son: - NECESIDADES CIUDADANAS: Si la institución ha implementado mecanismos para identificar necesidades ciudadanas respecto al trámite, seleccionar "SI", caso contrario, seleccionar "NO" - SUSCEPTIBILIDAD A CORRUPCIÓN: Si la institución dispone de información documentada sobre presuntos actos de corrupción, seleccionar "SI", caso contrario, seleccionar "NO" - VOLUMEN DE DEVOLUCIONES: Si la institución posee documentación sobre devoluciones del trámite en una cantidad significativa, seleccionar "SI", caso contrario, seleccionar "NO" Para que funcione la lista depelgable debe arrastrar la lista y la puntuación hacia abajo al último de los támites ingresados, no copiar
A70: En la columna puntaje total se realizará la sumatoria de los valores de los criterios básicos y adicionales. Este valor deberá registrarse en la plataforma GOB.EC

Sheet DEMANDA ANUAL
A1: PRIORIZACIÓN DE TRÁMITES ADMINISTRATIVOS
A2: DEMANDA ANUAL
A4: IDENTIFICADOR | B4: TRÁMITE | C4: DEMANDA ANUAL | D4: PUNTAJE
A5: SAE-008-03-02 | B5: Evaluación de seguimiento para mantener la designación o el reconocimiento de Organismos de Evaluación de la Conformidad - Laboratorios. Organismos de Certificación y Organismos de Inspección) | C5: 2 | D5: 3
A6: SAE-009-01-06 | B6: Retiro de la acreditación | C6: 6 | D6: 3
A7: SAE-011-01-01 | B7: Difusión en Cursos Específicos de Normas de Acreditación | C7: 7 | D7: 3
A8: SAE-009-01-05 | B8: Suspensión voluntaria de la acreditación | C8: 8 | D8: 6
A9: SAE-009-01-04 | B9: Reducción de Alcance de acreditación | C9: 16 | D9: 6
A10: SAE-009-01-01 | B10: Acreditación Inicial para Organismos Evaluadores de la Conformidad | C10: 25 | D10: 6
A11: SAE-009-01-03 | B11: Ampliación de Alcance de acreditación | C11: 42 | D11: 10
A12: SAE-009-01-02 | B12: Evaluacion de mantenimiento de acreditación | C12: 118 | D12: 10
A13: SAE-010-01-01 | B13: Verificación de Certificados de Conformidad para procesos de compras públicas, ARCSA, y demás requerimientos en materia de reconocimiento de la acreditación ingresados a través de la Plataforma complementaria de Servicios SAE | C13: 1430 | D13: 10
A14: OAE-004-01-01 | B14: Verificación de certificados y/o reportes ingresados al sistema ECUAPASS | C14: 2200 | D14: 10

Sheet VOLUMEN DE QUEJAS
A1: PRIORIZACIÓN DE TRÁMITES ADMINISTRATIVOS
A2: VOLUMEN DE QUEJAS
A4: IDENTIFICADOR | B4: TRÁMITE | C4: VOLUMEN DEMANDA | D4: VOLUMEN DE QUEJAS | E4: PORCENTAJE | F4: PUNTUACIÓN
A5: SAE-008-03-02 | B5: Evaluación de seguimiento para mantener la designación o el reconocimiento de Organismos de Evaluación de la Conformidad - Laboratorios. Organismos de Certificación y Organismos de Inspección) | C5: 2 | D5: 2 | E5: 100 | F5: 10
A6: SAE-009-01-06 | B6: Retiro de la acreditación | C6: 6 | D6: 0 | E6: 0 | F6: 0
A7: SAE-011-01-01 | B7: Difusión en Cursos Específicos de Normas de Acreditación | C7: 7 | D7: 0 | E7: 0 | F7: 0
A8: SAE-009-01-05 | B8: Suspensión voluntaria de la acreditación | C8: 8 | D8: 0 | E8: 0 | F8: 0
A9: SAE-009-01-04 | B9: Reducción de Alcance de acreditación | C9: 16 | D9: 0 | E9: 0 | F9: 0
A10: SAE-009-01-01 | B10: Acreditación Inicial para Organismos Evaluadores de la Conformidad | C10: 25 | D10: 4 | E10: 16 | F10: 10
A11: SAE-009-01-03 | B11: Ampliación de Alcance de acreditación | C11: 42 | D11: 0 | E11: 0 | F11: 0
A12: SAE-009-01-02 | B12: Evaluacion de mantenimiento de acreditación | C12: 118 | D12: 4 | E12: 3.389830508 | F12: 10
A13: SAE-010-01-01 | B13: Verificación de Certificados de Conformidad para procesos de compras públicas, ARCSA, y demás requerimientos en materia de reconocimiento de la acreditación ingresados a través de la Plataforma complementaria de Servicios SAE | C13: 1430 | D13: 0 | E13: 0 | F13: 0
A14: OAE-004-01-01 | B14: Verificación de certificados y/o reportes ingresados al sistema ECUAPASS | C14: 2200 | D14: 0 | E14: 0 | F14: 0

Sheet COSTO ADMINISTRACIÓN PÚBLICA
A1: PRIORIZACIÓN DE TRÁMITES ADMINISTRATIVOS
A2: COSTOS PARA LA ADMINISTRACIÓN PÚBLICA
A4: IDENTIFICADOR | B4: TRÁMITE | C4: INSUMOS PARA COSTO | F4: COSTO PARA LA ADM. PÚBLICA | H4: SBU | I4: 400
C5: TIEMPO (HORAS) | D5: COSTO PERSONAL | E5: COSTO RECURSOS
A6: SAE-008-03-02 | B6: Evaluación de seguimiento para mantener la designación o el reconocimiento de Organismos de Evaluación de la Conformidad - Laboratorios. Organismos de Certificación y Organismos de Inspección) | C6: ='AUXILIAR COSTO ADMINISTRACIÓN'!C90 -> 19.58333333 | D6: =C6*$I$4/160 -> 48.95833333 | E6: =2000/12 -> 166.6666667 | F6: =D6+E6 -> 215.625
A7: SAE-009-01-06 | B7: Retiro de la acreditación | C7: ='AUXILIAR COSTO ADMINISTRACIÓN'!C100 -> 3.083333333 | D7: =C7*$I$4/160 -> 7.708333333 | E7: =2000/12 -> 166.6666667 | F7: =D7+E7 -> 174.375
A8: SAE-011-01-01 | B8: Difusión en Cursos Específicos de Normas de Acreditación | C8: ='AUXILIAR COSTO ADMINISTRACIÓN'!C138 -> 32.25 | D8: 80.625 | E8: 166.6666667 | F8: 247.2916667
A9: SAE-009-01-05 | B9: Suspensión voluntaria de la acreditación | C9: ='AUXILIAR COSTO ADMINISTRACIÓN'!C147 -> 3.083333333 | D9: 7.708333333 | E9: 166.6666667 | F9: 174.375
A10: SAE-009-01-04 | B10: Reducción de Alcance de acreditación | C10: ='AUXILIAR COSTO ADMINISTRACIÓN'!C156 -> 3.083333333 | D10: 7.708333333 | E10: 166.6666667 | F10: 174.375
A11: SAE-009-01-01 | B11: Acreditación Inicial para Organismos Evaluadores de la Conformidad | C11: ='AUXILIAR COSTO ADMINISTRACIÓN'!C30 -> 48.84166667 | D11: 122.1041667 | E11: 166.6666667 | F11: 288.7708333
A12: SAE-009-01-03 | B12: Ampliación de Alcance de acreditación | C12: ='AUXILIAR COSTO ADMINISTRACIÓN'!C57 -> 40.84166667 | D12: 102.1041667 | E12: 166.6666667 | F12: 268.7708333
A13: SAE-009-01-02 | B13: Evaluacion de mantenimiento de acreditación | C13: ='AUXILIAR COSTO ADMINISTRACIÓN'!C74 -> 23.58333333 | D13: 58.95833333 | E13: 166.6666667 | F13: 225.625
A14: SAE-010-01-01 | B14: Verificación de Certificados de Conformidad para procesos de compras públicas, ARCSA, y demás requerimientos en materia de reconocimiento de la acreditación ingresados a través de la Plataforma complementaria de Servicios SAE | C14: ='AUXILIAR COSTO ADMINISTRACIÓN'!C109 -> 2 | D14: 5 | E14: 166.6666667 | F14: 171.6666667
A15: OAE-004-01-01 | B15: Verificación de certificados y/o reportes ingresados al sistema ECUAPASS | C15: ='AUXILIAR COSTO ADMINISTRACIÓN'!C118 -> 2.5 | D15: 6.25 | E15: 166.6666667 | F15: 172.9166667

Sheet RESUMEN DE COSTOS AP
A1: PRIORIZACIÓN DE TRÁMITES ADMINISTRATIVOS
A2: COSTOS PARA LA ADMINISTRACIÓN PÚBLICA
A4: IDENTIFICADOR | B4: TRÁMITE | C4: COSTO PARA LA ADM. PÚBLICA | D4: PUNTUACIÓN
A5: SAE-010-01-01 | B5: Verificación de Certificados de Conformidad para procesos de compras públicas, ARCSA, y demás requerimientos en materia de reconocimiento de la acreditación ingresados a través de la Plataforma complementaria de Servicios SAE | C5: 171.6666667 | D5: 5
A6: OAE-004-01-01 | B6: Verificación de certificados y/o reportes ingresados al sistema ECUAPASS | C6: 172.9166667 | D6: 5
A7: SAE-009-01-04 | B7: Reducción de Alcance de acreditación | C7: 174.375 | D7: 5
A8: SAE-009-01-06 | B8: Retiro de la acreditación | C8: 174.375 | D8: 5
A9: SAE-009-01-05 | B9: Suspensión voluntaria de la acreditación | C9: 174.375 | D9: 5
A10: SAE-008-03-02 | B10: Evaluación de seguimiento para mantener la designación o el reconocimiento de Organismos de Evaluación de la Conformidad - Laboratorios. Organismos de Certificación y Organismos de Inspección) | C10: 215.625 | D10: 10
A11: SAE-009-01-02 | B11: Evaluacion de mantenimiento de acreditación | C11: 225.625 | D11: 20
A12: SAE-011-01-01 | B12: Difusión en Cursos Específicos de Normas de Acreditación | C12: 247.2916667 | D12: 20
A13: SAE-009-01-03 | B13: Ampliación de Alcance de acreditación | C13: 268.7708333 | D13: 20
A14: SAE-009-01-01 | B14: Acreditación Inicial para Organismos Evaluadores de la Conformidad | C14: 288.7708333 | D14: 20

Sheet AUXILIAR COSTO ADMINISTRACIÓN
A2: TRÁMITE: | B2: Acreditación Inicial para Organismos Evaluadores de la Conformidad
A3: NO. | B3: ACTIVIDAD | C3: TIEMPO (HORAS)
A4: 1 | B4: Proforma para apertura de expediente. | C4: 0.25
A5: 2 | B5: Dirección Administrativa Financiera, entrega al OEC la proforma de manera inmediata. | C5: 0.2083333333
A6: 3 | B6: Dirección Administrativa Financiera registra el pago | C6: =15/60 -> 0.25
A7: 4 | B7: Recibir solicitud | C7: 0.05
A8: 5 | B8: Dirección de Asesoría Jurídica revisa la solicitud (5 días) | C8: 2
A9: 6 | B9: Dirección de Asesoría Jurídica envía la documentación completa en el término de 1 día a la Dirección Técnica correspondiente | C9: =15/60 -> 0.25
A10: 7 | B10: La Dirección Técnica una vez que recibe la documentación, registra el proceso y le asigna a un técnico Responsable | C10: =30/60 -> 0.5
A11: 8 | B11: El Responsable del Proceso de Acreditación, en el término de 5 días, analizará la solicitud | C11: 4
A12: 9 | B12: Planificación Inicial de Evaluación que incluya la propuesta del Equipo Evaluador y posibles fechas de evaluación, todo lo cual se deberá coordinar con el OEC. | C12: 2
A13: 10 | B13: Para el caso de una acreditación inicial, se podrá realizar una visita preliminar (pre evaluación) | C13: 8
A14: 11 | B14: Enviar al Equipo Evaluador designado | C14: 2
A15: 12 | B15: El equipo evaluador revisará todos los documentos del OEC. | C15: 5
A16: 13 | B16: Enviar al OEC el Informe de evaluación documental, en el término de 2 días s | C16: 2
A17: 14 | B17: El Evaluador Líder remitirá un informe para la comisión de acreditación | C17: 1
A18: 15 | B18: Comisión de acreditación evaluación | C18: 2
A19: 16 | B19: El Evaluador Líder elaborará una propuesta de plan de evaluación | C19: 2
A20: 17 | B20: Enviar notificación | C20: =20/60 -> 0.3333333333
A21: 18 | B21: Testificaciones. | C21: 8
A22: 19 | B22: Elaboración y entrega del informe para la decision | C22: 4
A23: 20 | B23: Entrega del Informe para la Decisión, dentro del término de 10 días | C23: 2
A24: 21 | B24: Toma de decisión. | C24: 1
A25: 22 | B25: Solicitud y entrega de Evidencias adicionales. | C25: 1
A26: 23 | B26: Comunicación y publicación de la decisión. | C26: 1
B30: SUMATORIA ACTIVIDADES | C30: =SUM(C4:C29) -> 48.84166667
A33: TRÁMITE: | B33: Ampliación de Alcance de acreditación
A34: NO. | B34: ACTIVIDAD | C34: TIEMPO (HORAS)
A35: 1 | B35: Proforma para apertura de expediente. | C35: 0.25
A36: 2 | B36: Dirección Administrativa Financiera, entrega al OEC la proforma de manera inmediata. | C36: 0.2083333333
A37: 3 | B37: Dirección Administrativa Financiera registra el pago | C37: =15/60 -> 0.25
A38: 4 | B38: Recibir solicitud | C38: 0.05
A39: 5 | B39: Dirección de Asesoría Jurídica revisa la solicitud (5 días) | C39: 2
A40: 6 | B40: Dirección de Asesoría Jurídica envía la documentación completa en el término de 1 día a la Dirección Técnica correspondiente | C40: =15/60 -> 0.25
A41: 7 | B41: La Dirección Técnica una vez que recibe la documentación, registra el proceso y le asigna a un técnico Responsable | C41: =30/60 -> 0.5
A42: 8 | B42: El Responsable del Proceso de Acreditación, en el término de 5 días, analizará la solicitud | C42: 4
A43: 9 | B43: Planificación Inicial de Evaluación que incluya la propuesta del Equipo Evaluador y posibles fechas de evaluación, todo lo cual se deberá coordinar con el OEC. | C43: 2
A44: 10 | B44: Enviar al Equipo Evaluador designado | C44: 2
A45: 11 | B45: El equipo evaluador revisará todos los documentos del OEC. | C45: 5
A46: 12 | B46: Enviar al OEC el Informe de evaluación documental, en el término de 2 días s | C46: 2
A47: 13 | B47: El Evaluador Líder remitirá un informe para la comisión de acreditación | C47: 1
A48: 14 | B48: Comisión de acreditación evaluación | C48: 2
A49: 15 | B49: El Evaluador Líder elaborará una propuesta de plan de evaluación | C49: 2
A50: 16 | B50: Enviar notificación | C50: =20/60 -> 0.3333333333
A51: 17 | B51: Testificaciones. | C51: 8
A52: 18 | B52: Elaboración y entrega del informe para la decision | C52: 4
A53: 19 | B53: Entrega del Informe para la Decisión, dentro del término de 10 días | C53: 2
A54: 20 | B54: Toma de decisión. | C54: 1
A55: 21 | B55: Solicitud y entrega de Evidencias adicionales. | C55: 1
A56: 22 | B56: Comunicación y publicación de la decisión. | C56: 1
B57: SUMATORIA ACTIVIDADES | C57: =SUM(C35:C56) -> 40.84166667
A60: TRÁMITE: | B60: Evaluacion de mantenimiento de acreditación
A61: NO. | B61: ACTIVIDAD | C61: TIEMPO (HORAS)
A62: 1 | B62: Dirección Administrativa Financiera registra el pago | C62: =15/60 -> 0.25
A63: 2 | B63: Planificación Inicial de Evaluación que incluya la propuesta del Equipo Evaluador y posibles fechas de evaluación, todo lo cual se deberá coordinar con el OEC. | C63: 2
A64: 3 | B64: Enviar al Equipo Evaluador designado | C64: 2
A65: 4 | B65: El Evaluador Líder elaborará una propuesta de plan de evaluación | C65: 2
A66: 5 | B66: Enviar notificación | C66: =20/60 -> 0.3333333333
A67: 6 | B67: Testificaciones. | C67: 8
A68: 7 | B68: Elaboración y entrega del informe para la decision | C68: 4
A69: 8 | B69: Entrega del Informe para la Decisión, dentro del término de 10 días | C69: 2
A70: 9 | B70: Toma de decisión. | C70: 1
A71: 10 | B71: Solicitud y entrega de Evidencias adicionales. | C71: 1
A72: 11 | B72: Comunicación y publicación de la decisión. | C72: 1
A73: 12
B74: SUMATORIA ACTIVIDADES | C74: =SUM(C62:C73) -> 23.58333333
A77: TRÁMITE: | B77: Evaluación de seguimiento para mantener la designación o el reconocimiento de Organismos de Evaluación de la Conformidad - Laboratorios. Organismos de Certificación y Organismos de Inspección)
A78: NO. | B78: ACTIVIDAD | C78: TIEMPO (HORAS)
A79: 1 | B79: Dirección Administrativa Financiera registra el pago | C79: =15/60 -> 0.25
A80: 2 | B80: Planificación Inicial de Evaluación que incluya la propuesta del Equipo Evaluador y posibles fechas de evaluación, todo lo cual se deberá coordinar con el OEC. | C80: 2
A81: 3 | B81: Enviar al Equipo Evaluador designado | C81: 2
A82: 4 | B82: El Evaluador Líder elaborará una propuesta de plan de evaluación | C82: 2
A83: 5 | B83: Enviar notificación | C83: =20/60 -> 0.3333333333
A84: 6 | B84: Testificaciones. | C84: 8
A85: 7 | B85: Elaboración y entrega del informe para la decision | C85: 2
A86: 8 | B86: Entrega del Informe para la Decisión, dentro del término de 10 días | C86: 1
A87: 9 | B87: Toma de decisión. | C87: 1
A88: 10 | B88: Entrega del Informe Técnico al MPCEIP | C88: 1
A89: 11
B90: SUMATORIA ACTIVIDADES | C90: =SUM(C79:C89) -> 19.58333333
A93: TRÁMITE: | B93: Retiro de la acreditación
A94: NO. | B94: ACTIVIDAD | C94: TIEMPO (HORAS)
A95: 1 | B95: Recepción de solicitud | C95: =15/60 -> 0.25
A96: 2 | B96: Análisis de la solicitud | C96: 2
A97: 3 | B97: Comunicar a la Coordinación General | C97: =20/60 -> 0.3333333333
A98: 4 | B98: Actualización en la base de datos del SAE | C98: =30/60 -> 0.5
A99: 5
B100: SUMATORIA ACTIVIDADES | C100: =SUM(C95:C99) -> 3.083333333
A103: TRÁMITE: | B103: Verificación de Certificados de Conformidad para procesos de compras públicas, ARCSA, y demás requerimientos en materia de reconocimiento de la acreditación ingresados a través de la Plataforma complementaria de Servicios SAE
A104: NO. | B104: ACTIVIDAD | C104: TIEMPO (HORAS)
A105: 1 | B105: Recepción de solicitud electrónica | C105: =10/60 -> 0.1666666667
A106: 2 | B106: Verificación de Certificados de Conformidad | C106: =90/60 -> 1.5
A107: 3 | B107: Decisión en la Verificación de Certificados de Conformidad | C107: =20/60 -> 0.3333333333
A108: 4
B109: SUMATORIA ACTIVIDADES | C109: =SUM(C105:C108) -> 2
A112: TRÁMITE: | B112: Verificación de certificados y/o reportes ingresados al sistema ECUAPASS
A113: NO. | B113: ACTIVIDAD | C113: TIEMPO (HORAS)
A114: 1 | B114: Recepción de solicitud electrónica | C114: =10/60 -> 0.1666666667
A115: 2 | B115: Verificación de Certificados de Conformidad | C115: 2
A116: 3 | B116: Decisión en la Verificación de Certificados de Conformidad | C116: =20/60 -> 0.3333333333
A117: 4
B118: SUMATORIA ACTIVIDADES | C118: =SUM(C114:C117) -> 2.5
A121: TRÁMITE: | B121: Difusión en Cursos Específicos de Normas de Acreditación
A122: NO. | B122: ACTIVIDAD | C122: TIEMPO (HORAS)
A123: 1 | B123: Aprobar planificación de cursos | C123: =20/60 -> 0.3333333333
A124: 2 | B124: Publicar Plan de capacitación | C124: =40/60 -> 0.6666666667
A125: 3 | B125: Enviar de documentos habilitantes para participar en el curso | C125: =20/60 -> 0.3333333333
A126: 4 | B126: Verificar cumplimiento de requisitos y número de postulantes | C126: 2
A127: 5 | B127: Coordinar logista de la capacitación | C127: 1
A128: 6 | B128: Difundir material didáctico e instrucciones generales y particulares para la capacitación por correo electrónico (DGC - Participantes) | C128: 1
A129: 7 | B129: Ejecutar el curso en la fecha programada | C129: =8*3 -> 24
A130: 8 | B130: Enviar quipux para facturación al área financiera | C130: =15/60 -> 0.25
A131: 9 | B131: Enviar encuestas digitales de satisfacción | C131: =20/60 -> 0.3333333333
A132: 10 | B132: Enviar Certificados (aprobación/ asistencia / instructores) | C132: =30/60 -> 0.5
A133: 11 | B133: Respaldar documentación del curso en carpeta física y digital de la DGC | C133: 1
A134: 12 | B134: Entregar certificados a las área técnicas (DGC-DT) | C134: =20/60 -> 0.3333333333
A135: 13 | B135: Notificar a inscritos que procedan a retirar certificado de capacitación | C135: =30/60 -> 0.5
A136: 14
B138: SUMATORIA ACTIVIDADES | C138: =SUM(C123:C137) -> 32.25
A141: TRÁMITE: | B141: Suspensión voluntaria de la acreditación
A142: NO. | B142: ACTIVIDAD | C142: TIEMPO (HORAS)
A143: 1 | B143: Recepción de solicitud | C143: =15/60 -> 0.25
A144: 2 | B144: Análisis de la solicitud | C144: 2
A145: 3 | B145: Comunicar a la Coordinación General | C145: =20/60 -> 0.3333333333
A146: 4 | B146: Actualización en la base de datos del SAE | C146: =30/60 -> 0.5
B147: SUMATORIA ACTIVIDADES | C147: =SUM(C143:C146) -> 3.083333333
A150: TRÁMITE: | B150: Reducción de Alcance de acreditación
A151: NO. | B151: ACTIVIDAD | C151: TIEMPO (HORAS)
A152: 1 | B152: Recepción de solicitud | C152: =15/60 -> 0.25
A153: 2 | B153: Análisis de la solicitud | C153: 2
A154: 3 | B154: Comunicar a la Coordinación General | C154: =20/60 -> 0.3333333333
A155: 4 | B155: Actualización en la base de datos del SAE | C155: =30/60 -> 0.5
B156: SUMATORIA ACTIVIDADES | C156: =SUM(C152:C155) -> 3.083333333

Sheet TIEMPO DE RESPUESTA
A1: PRIORIZACIÓN DE TRÁMITES ADMINISTRATIVOS
A2: TIEMPO DE RESPUESTA
A4: IDENTIFICADOR | B4: TRÁMITE | C4: TIEMPO RESPUESTA (horas laborables) | D4: PUNTUACIÓN
A5: SAE-008-03-02 | B5: Evaluación de seguimiento para mantener la designación o el reconocimiento de Organismos de Evaluación de la Conformidad - Laboratorios. Organismos de Certificación y Organismos de Inspección) | C5: =(20*3)*8 -> 480 | D5: 30
A6: SAE-009-01-06 | B6: Retiro de la acreditación | C6: 240 | D6: 30
A7: SAE-011-01-01 | B7: Difusión en Cursos Específicos de Normas de Acreditación | C7: 16 | D7: 0
A8: SAE-009-01-05 | B8: Suspensión voluntaria de la acreditación | C8: 240 | D8: 30
A9: SAE-009-01-04 | B9: Reducción de Alcance de acreditación | C9: 240 | D9: 30
A10: SAE-009-01-01 | B10: Acreditación Inicial para Organismos Evaluadores de la Conformidad | C10: 1864 | D10: 30
A11: SAE-009-01-03 | B11: Ampliación de Alcance de acreditación | C11: 1784 | D11: 30
A12: SAE-009-01-02 | B12: Evaluacion de mantenimiento de acreditación | C12: 1784 | D12: 30
A13: SAE-010-01-01 | B13: Verificación de Certificados de Conformidad para procesos de compras públicas, ARCSA, y demás requerimientos en materia de reconocimiento de la acreditación ingresados a través de la Plataforma complementaria de Servicios SAE | C13: 16 | D13: 0
A14: OAE-004-01-01 | B14: Verificación de certificados y/o reportes ingresados al sistema ECUAPASS | C14: 1 | D14: 0
C22: El metodo de calculo se trabajo
C23: 20 días * X mes*8 horas laborables

Sheet CANAL ATENCIÓN
A1: PRIORIZACIÓN DE TRÁMITES ADMINISTRATIVOS
A2: CANAL DE ATENCIÓN
I3: Totalmente en Línea | L3: 0
A4: IDENTIFICADOR | B4: TRÁMITE | C4: CANAL ATENCIÓN | D4: PUNTUACIÓN | I4: No se completa totalmente en línea. | L4: 10
A5: SAE-008-03-02 | B5: Evaluación de seguimiento para mantener la designación o el reconocimiento de Organismos de Evaluación de la Conformidad - Laboratorios. Organismos de Certificación y Organismos de Inspección) | C5: No se completa totalmente en línea. | D5: =IF(ISBLANK(C5),"",IF(C5="Totalmente en línea",0,IF(C5="Inicia en línea",6,10))) -> 10
A6: SAE-009-01-06 | B6: Retiro de la acreditación | C6: No se completa totalmente en línea. | D6: =IF(ISBLANK(C6),"",IF(C6="Totalmente en línea",0,IF(C6="Inicia en línea",6,10))) -> 10
A7: SAE-011-01-01 | B7: Difusión en Cursos Específicos de Normas de Acreditación | C7: No se completa totalmente en línea. | D7: 10
A8: SAE-009-01-05 | B8: Suspensión voluntaria de la acreditación | C8: No se completa totalmente en línea. | D8: 10
A9: SAE-009-01-04 | B9: Reducción de Alcance de acreditación | C9: No se completa totalmente en línea. | D9: 10
A10: SAE-009-01-01 | B10: Acreditación Inicial para Organismos Evaluadores de la Conformidad | C10: No se completa totalmente en línea. | D10: 10
A11: SAE-009-01-03 | B11: Ampliación de Alcance de acreditación | C11: No se completa totalmente en línea. | D11: 10
A12: SAE-009-01-02 | B12: Evaluacion de mantenimiento de acreditación | C12: No se completa totalmente en línea. | D12: 10
A13: SAE-010-01-01 | B13: Verificación de Certificados de Conformidad para procesos de compras públicas, ARCSA, y demás requerimientos en materia de reconocimiento de la acreditación ingresados a través de la Plataforma complementaria de Servicios SAE | C13: Totalmente en Línea | D13: 0
A14: OAE-004-01-01 | B14: Verificación de certificados y/o reportes ingresados al sistema ECUAPASS | C14: Totalmente en Línea | D14: 0

Sheet RESUMEN
C1: BÁSICOS | H1: ADICIONALES
A2: ID trámite | B2: Nombre del trámite | C2: Demanda | D2: Quejas | E2: Costo para administración | F2: Tiempo de respuesta | G2: Canal de atención | H2: Necesidades ciudadanas | J2: Susceptibilidad a corrupción | L2: Volumen de devoluciones | N2: PUNTAJE TOTAL
H3: Criterio | I3: Puntuación | J3: Criterio | K3: Puntuación | L3: Criterio | M3: Puntuación | U3: demanda | V3: 0 | W3: 3 | X3: 6 | Y3: 10
A4: SAE-008-03-02 | B4: Evaluación de seguimiento para mantener la designación o el reconocimiento de Organismos de Evaluación de la Conformidad - Laboratorios. Organismos de Certificación y Organismos de Inspección) | C4: 3 | D4: 10 | E4: 10 | F4: 30 | G4: 10 | H4: NO | I4: =IF(H4="SI",5,0) -> 0 | J4: NO | K4: =IF(J4="SI",10,0) -> 0 | L4: NO | M4: =IF(L4="SI",5,0) -> 0 | N4: =SUM(C4:G4,I4,K4,M4) -> 63 | U4: quejas | V4: 0 | W4: 4 | X4: 10
A5: SAE-009-01-06 | B5: Retiro de la acreditación | C5: 3 | D5: 0 | E5: 5 | F5: 30 | G5: 10 | H5: NO | I5: =IF(H5="SI",5,0) -> 0 | J5: NO | K5: =IF(J5="SI",10,0) -> 0 | L5: NO | M5: =IF(L5="SI",5,0) -> 0 | N5: =SUM(C5:G5,I5,K5,M5) -> 48 | U5: cpa | V5: 5 | W5: 10 | X5: 20
A6: SAE-011-01-01 | B6: Difusión en Cursos Específicos de Normas de Acreditación | C6: 3 | D6: 0 | E6: 20 | F6: 0 | G6: 10 | H6: NO | I6: 0 | J6: NO | K6: 0 | L6: NO | M6: 0 | N6: 33 | U6: tr | V6: 0 | W6: 30
A7: SAE-009-01-05 | B7: Suspensión voluntaria de la acreditación | C7: 6 | D7: 0 | E7: 5 | F7: 30 | G7: 10 | H7: NO | I7: 0 | J7: NO | K7: 0 | L7: NO | M7: 0 | N7: 51 | U7: ca | V7: 0 | W7: 10
A8: SAE-009-01-04 | B8: Reducción de Alcance de acreditación | C8: 6 | D8: 0 | E8: 5 | F8: 30 | G8: 10 | H8: NO | I8: 0 | J8: NO | K8: 0 | L8: NO | M8: 0 | N8: 51 | V8: SI | W8: NO
A9: SAE-009-01-01 | B9: Acreditación Inicial para Organismos Evaluadores de la Conformidad | C9: 6 | D9: 10 | E9: 20 | F9: 30 | G9: 10 | H9: NO | I9: 0 | J9: NO | K9: 0 | L9: NO | M9: 0 | N9: 76
A10: SAE-009-01-03 | B10: Ampliación de Alcance de acreditación | C10: 10 | D10: 0 | E10: 20 | F10: 30 | G10: 10 | H10: NO | I10: 0 | J10: NO | K10: 0 | L10: NO | M10: 0 | N10: 70
A11: SAE-009-01-02 | B11: Evaluacion de mantenimiento de acreditación | C11: 10 | D11: 10 | E11: 20 | F11: 30 | G11: 10 | H11: NO | I11: 0 | J11: NO | K11: 0 | L11: NO | M11: 0 | N11: 80
A12: SAE-010-01-01 | B12: Verificación de Certificados de Conformidad para procesos de compras públicas, ARCSA, y demás requerimientos en materia de reconocimiento de la acreditación ingresados a través de la Plataforma complementaria de Servicios SAE | C12: 10 | D12: 0 | E12: 5 | F12: 0 | G12: 0 | H12: NO | I12: 0 | J12: NO | K12: 0 | L12: NO | M12: 0 | N12: 15
A13: OAE-004-01-01 | B13: Verificación de certificados y/o reportes ingresados al sistema ECUAPASS | C13: 10 | D13: 0 | E13: 5 | F13: 0 | G13: 0 | H13: NO | I13: 0 | J13: NO | K13: 0 | L13: NO | M13: 0 | N13: 15
